[Event "1000IM Saint Louis 2022"]
[Site "Saint Louis"]
[Date "2022.07.22"]
[Round "8.5"]
[White "Williams, Justus"]
[Black "Stefanov, Emil"]
[Result "1-0"]
[ECO "C55"]
[WhiteElo "2390"]
[BlackElo "2342"]
[Annotator "TA"]
[PlyCount "101"]
[EventDate "2022.07.20"]
[EventType "tourn"]
[EventCountry "USA"]
[SourceTitle "playchess.com"]
[Source "ChessBase"]
[SourceQuality "1"]
[TimeControl "5400+30"]

{[%evp 10,101,23,22,26,11,20,8,30,18,32,-8,47,18,23,25,18,16,23,12,19,8,14,15,23,0,0,0,0,0,0,0,0,0,94,101,94,95,84,89,74,39,48,50,42,35,39,34,78,69,70,63,114,116,160,164,156,134,152,156,175,173,171,162,464,457,833,120,822,832,823,819,788,781,825,775,1221,1200,1530,1527,2756,2388,6747,11495,29986,29987,29987,29986,29986,29987,29988,29972,29972,4926]} 1. e4 {[%emt 0:00:12]} e5 {[%emt 0:00:15]} 2. Nf3 {[%emt 0:00:09]} Nc6 {[%emt 0:00:10]} 3. Bc4 {[%emt 0:00:08]} Nf6 {[%emt 0:00:35]} 4. d3 {[%emt 0:00:13]} h6 {[%emt 0:00:12]} 5. O-O {[%emt 0:00:42]} d6 {[%emt 0:00:48]} 6. a4 {[%emt 0:01:29]} g5 {[%emt 0:01:46] C55: Two Knights: 4 d3, 4 d4 exd4 5 e5 and Max Lange Attack.} 7. Re1 {[%emt 0:02:28]} g4 {[%emt 0:02:01]} 8. Nfd2 {[%emt 0:01:38]} h5 {[%emt 0:00:26] The position is equal.} 9. Nf1 {[%emt 0:01:52] [#]} Bh6 $146 {[%emt 0:00:33]} ({Predecessor:} 9... Be6 10. a5 a6 11. Nc3 Bh6 12. Bxh6 Rxh6 13. Nd5 Kd7 14. c3 Nh7 15. b4 Ne7 {½-½ (52) Vokhidov,S (2494)-Grigoryan,K (2571) Tashkent 2019}) 10. c3 {[%emt 0:00:51]} Kf8 {[%emt 0:17:13]} (10... Bxc1 $11 11. Qxc1 Be6) 11. Be3 {[%emt 0:11:05]} Ne7 {[%emt 0:10:11]} 12. Nbd2 {[%emt 0:05:59]} h4 {[%emt 0:01:55]} 13. d4 {[%emt 0:02:15]} Ng6 {[%emt 0:01:00]} 14. Qb3 {[%emt 0:05:59]} Qe7 {[%emt 0:01:52]} 15. Bxh6+ {[%emt 0:00:48]} Rxh6 {[%emt 0:00:05]} 16. Ne3 {[%emt 0:00:10] Threatens to win with Nf5.} Rh5 {[%emt 0:01:02] Against Nf5} 17. Nf5 {[%emt 0:01:39]} Qe8 {[%emt 0:01:13][%cal Of6e4]} 18. Rad1 {[%emt 0:04:01]} Rb8 {[%emt 0:08:38]} 19. Qb4 {[%emt 0:07:09][%cal Of5d6]} Bxf5 {[%emt 0:07:04]} 20. exf5 {[%emt 0:00:10]} Rxf5 {[%emt 0:00:03]} 21. Bd3 $1 {[%emt 0:04:11]} Rg5 {[%emt 0:00:09]} (21... Rh5 $11) 22. Bxg6 $16 {[%emt 0:00:46] White is more active.} fxg6 {[%emt 0:00:42] [#]} 23. f4 $1 $36 {[%emt 0:01:02][%mdl 2048] White has strong initiative.} gxf3 {[%emt 0:07:43]} 24. Nxf3 {[%emt 0:00:09]} Rg4 {[%emt 0:00:08]} 25. Nxe5 {[%emt 0:03:33]} c5 $1 {[%emt 0:03:51] [#]} 26. Nxg4 {[%emt 0:03:19]} cxb4 {[%emt 0:00:04]} 27. Rxe8+ {[%emt 0:00:12]} Nxe8 {[%emt 0:00:03]} 28. cxb4 $14 {[%emt 0:02:23][%mdl 4096] Endgame KRN-KRN} Rc8 {[%emt 0:00:05] Against Rc1} 29. Ne3 {[%emt 0:00:51] Inhibits Rc4.} Nf6 {[%emt 0:01:37]} 30. Kf2 {[%emt 0:01:03]} Kg7 {[%emt 0:04:48]} (30... Ke7 $14) 31. Ke2 $16 {[%emt 0:01:06]} Kh6 {[%emt 0:00:53]} 32. Rf1 {[%emt 0:00:48]} Kg5 {[%emt 0:00:35]} 33. Kd3 {[%emt 0:00:15]} d5 {[%emt 0:02:07]} 34. b5 {[%emt 0:01:53]} b6 {[%emt 0:01:31]} 35. b3 {[%emt 0:02:52]} Re8 {[%emt 0:01:04]} 36. Rc1 {[%emt 0:00:44]} Kf4 $2 {[%emt 0:00:40]} (36... Re7 37. b4 Rf7) 37. g3+ $1 $18 {[%emt 0:01:56]} hxg3 {[%emt 0:00:06]} (37... Kg5 $142 38. gxh4+ Kxh4) 38. Rf1+ {[%emt 0:00:41]} Kg5 {[%emt 0:00:05] This move loses the game for Black.} 39. h4+ {[%emt 0:00:10]} Kxh4 {[%emt 0:00:17]} 40. Rxf6 {[%emt 0:00:03] KRN-KR} Kg5 {[%emt 0:02:29]} 41. Rf1 {[%emt 0:01:06]} Rh8 {[%emt 0:00:05]} 42. Nxd5 {[%emt 0:01:49]} Rh2 {[%emt 0:00:24]} 43. Ne3 {[%emt 0:06:41]} Rb2 {[%emt 0:02:01]} 44. d5 {[%emt 0:01:43][%cal Bd4d5,Bd5d6][%mdl 32] Hoping for d6.} Rxb3+ {[%emt 0:02:20]} 45. Kd4 {[%emt 0:00:27] d6 is the strong threat.} Rb4+ {[%emt 0:00:11]} 46. Nc4 {[%emt 0:00:14] d6 would kill now.} Rxa4 {[%emt 0:00:25]} 47. d6 {[%emt 0:00:09] White mates.} g2 {[%emt 0:00:02]} 48. Rg1 {[%emt 0:00:06]} Kf6 {[%emt 0:00:08]} 49. Rxg2 {[%emt 0:00:07]} a6 {[%emt 0:01:22]} 50. Kd5 {[%emt 0:00:08]} axb5 {[%emt 0:00:08]} 51. Rf2+ {[%emt 0:00:02] Weighted Error Value: White=0.05 (flawless) /Black=0.43} (51. d7 $142 Ra8 52. Rf2+ Kg7 53. Ne5 b4 54. Nc6 g5 55. Rb2 Rh8 56. Rxb4) 1-0

[Event "1000IM Saint Louis 2022"]
[Site "Saint Louis"]
[Date "2022.07.23"]
[Round "9.1"]
[White "Stefanov, Emil"]
[Black "Cervantes Landeiro, Thalia"]
[Result "1/2-1/2"]
[ECO "D28"]
[WhiteElo "2342"]
[BlackElo "2234"]
[Annotator "TA"]
[PlyCount "138"]
[EventDate "2022.07.20"]
[EventType "tourn"]
[EventCountry "USA"]
[SourceTitle "playchess.com"]
[Source "ChessBase"]
[SourceQuality "1"]
[TimeControl "5400+30"]

{[%evp 16,138,18,7,43,43,46,45,54,56,72,58,47,33,27,31,76,79,86,87,72,68,66,82,79,45,53,42,87,86,99,93,127,125,126,121,122,125,130,121,130,120,131,134,129,116,123,122,123,122,137,134,128,120,164,126,154,0,0,0,120,127,127,132,125,73,202,185,133,113,236,76,231,91,97,0,190,32,102,0,0,0,0,0,0,0,0,0,0,0,0,0,0,0,0,0,0,0,0,0,0,0,0,0,0,0,0,0,0,0,0,0,0,0,0,0,0,0,0,0,0,0,0,0,0]} 1. d4 {[%emt 0:00:10]} d5 {[%emt 0:00:05]} 2. c4 {[%emt 0:00:10]} dxc4 {[%emt 0:00:06]} 3. e3 {[%emt 0:00:10]} Nf6 {[%emt 0:00:09]} 4. Bxc4 {[%emt 0:00:15]} e6 {[%emt 0:00:09]} 5. Nf3 {[%emt 0:00:10]} c5 {[%emt 0:00:10]} 6. O-O {[%emt 0:00:13]} Nc6 {[%emt 0:00:05]} 7. Nc3 {[%emt 0:00:42]} a6 {[%emt 0:00:33]} 8. Bb3 {[%emt 0:00:10]} b5 {[%emt 0:03:22]} 9. Qe2 {[%emt 0:00:47]} cxd4 {[%emt 0:08:21] D28: Queen's Gambit Accepted: Classical main line: 7 Qe2 with early ...Nc6.} 10. Rd1 {[%emt 0:00:39][%cal Re3d4]} Na5 $1 {[%emt 0:15:23]} 11. Nxd4 {[%emt 0:03:51][%cal Bf3d4,Bd4c2,Bc2e3][%mdl 32]} (11. Rxd4 Qc7 $11) 11... Qb6 {[%emt 0:05:33] White is slightly better.} 12. e4 $1 {[%emt 0:03:39]} Bc5 {[%emt 0:04:32]} 13. Be3 {[%emt 0:37:24] [#] aiming for e5. White is more active.} (13. e5 $5 {[%cal Re5f6]} Bxd4 14. exf6 $16) 13... e5 $146 {[%emt 0:09:07]} ({Predecessor:} 13... Bb7 14. e5 Nxb3 15. axb3 Nd5 16. Nxd5 Bxd5 17. Qg4 Kf8 18. Rac1 Bxd4 19. Bxd4 Qb7 {½-½ (33) Biriukov,O (2391)-Zickus,S (2269) Pardubice 2008}) 14. Nc2 {[%emt 0:06:14] Strongly threatening Nd5.} Nxb3 {[%emt 0:01:43]} 15. axb3 {[%emt 0:00:06]} Bg4 {[%emt 0:04:27]} 16. f3 {[%emt 0:00:47]} Be6 {[%emt 0:00:56]} 17. b4 {[%emt 0:03:39]} Bxe3+ {[%emt 0:00:22]} 18. Qxe3 {[%emt 0:00:06]} Qxe3+ {[%emt 0:01:06]} 19. Nxe3 {[%emt 0:00:04]} Ke7 {[%emt 0:02:10]} 20. Ra3 {[%emt 0:01:08]} Rhd8 {[%emt 0:04:50]} 21. Rxd8 {[%emt 0:01:05]} Rxd8 {[%emt 0:00:55]} 22. Rxa6 {[%emt 0:00:39]} Rd4 {[%emt 0:03:24]} 23. Ra7+ {[%emt 0:01:01]} Kf8 {[%emt 0:02:45]} 24. Rb7 {[%emt 0:04:52]} Rxb4 {[%emt 0:07:11]} 25. Rxb5 {[%emt 0:00:29]} Rxb5 {[%emt 0:06:02]} 26. Nxb5 $16 {[%emt 0:00:06][%mdl 4096] Endgame KBN-KNN} Ke7 {[%emt 0:00:16]} 27. Kf2 {[%emt 0:00:45]} Kd7 {[%emt 0:00:40]} 28. b4 {[%emt 0:06:19]} Kc6 {[%emt 0:02:48]} 29. Nc3 {[%emt 0:00:05]} Ne8 {[%emt 0:00:47]} 30. Ke2 {[%emt 0:00:58]} Nd6 {[%emt 0:02:14]} 31. Kd3 {[%emt 0:00:08]} f6 {[%emt 0:00:58]} 32. g4 {[%emt 0:03:40]} Bc8 {[%emt 0:01:52]} 33. h4 {[%emt 0:07:16]} Be6 {[%emt 0:04:12]} 34. h5 {[%emt 0:02:16]} Bf7 {[%emt 0:03:36]} 35. Ned5 {[%emt 0:04:18][%cal Oh5h6]} Ne8 {[%emt 0:00:59]} 36. Kc4 $2 {[%emt 0:04:44]} (36. b5+ Kc5 $16) ({Better is} 36. Kc2 $16) 36... Nd6+ $11 {[%emt 0:00:49]} 37. Kd3 {[%emt 0:00:53]} (37. Kb3 $11) 37... Ne8 $1 $16 {[%emt 0:00:15]} 38. Ne7+ {[%emt 0:03:23]} Kd7 {[%emt 0:00:37]} 39. Ncd5 {[%emt 0:00:15] Kc4 is the strong threat.} Nd6 {[%emt 0:01:04]} 40. Kd2 {[%emt 0:05:50]} (40. Ke3 $142) 40... Nc4+ {[%emt 0:01:41]} (40... Nb5 $16) 41. Kc3 $18 {[%emt 0:00:17]} Nd6 {[%emt 0:00:03]} 42. Kd3 {[%emt 0:00:06]} g6 {[%emt 0:01:42] [#]} (42... h6 $16 {keeps fighting.} 43. Ng6 Kc6) 43. h6 $2 {[%emt 0:00:10]} (43. Ng8 $1 $18 {[%cal Rg8f6][%mdl 512] is the precise move to win.}) 43... Be6 $2 {[%emt 0:01:23]} (43... f5 $16) 44. Kc3 {[%emt 0:01:01]} (44. Nxf6+ Kxe7 45. g5 (45. Nxh7 Bg8 $11) 45... Bc4+ 46. Ke3 Nf7 47. Nxh7 Bf1 $14) (44. b5 $18 {and White stays clearly on top.}) 44... Bf7 $16 {[%emt 0:02:18] [#]} 45. Kd3 {[%emt 0:01:20]} ({Much worse is} 45. Nxf6+ $6 Kxe7 46. Nxh7 Be8 $14) (45. Nc8 $1 $16 {Threatens to win with Nxd6.} Nb5+ (45... Ne8 46. Ncb6+) 46. Kd2 (46. Kc4 Nc7 $11)) 45... Be6 $18 {[%emt 0:00:06]} 46. Kc2 $2 {[%emt 0:00:16]} ({And not} 46. Nxf6+ Kxe7 47. g5 (47. Nxh7 Bg8 $11) 47... Bc4+ 48. Ke3 Nf7 49. Nxh7 Bf1 $14) (46. b5 $18) 46... Bf7 {[%emt 0:00:48]} (46... f5 $1 $14) 47. Kb2 {[%emt 0:00:37]} (47. Kd2 $16) 47... f5 $1 $11 {[%emt 0:00:40] The position is equal.} 48. exf5 {[%emt 0:00:13]} gxf5 {[%emt 0:00:17]} 49. g5 {[%emt 0:00:50][%cal Og5g6]} Ke6 {[%emt 0:00:27]} 50. Kc3 {[%emt 0:00:15]} Bh5 {[%emt 0:00:46]} 51. f4 {[%emt 0:00:37]} Ne4+ {[%emt 0:00:32]} 52. Kd3 {[%emt 0:00:32]} exf4 {[%emt 0:00:37]} 53. g6 {[%emt 0:00:29]} Bxg6 {[%emt 0:00:25]} 54. Nxg6 {[%emt 0:00:43]} Kxd5 {[%emt 0:00:14]} 55. Nxf4+ {[%emt 0:00:03] KN-KN} Ke5 {[%emt 0:00:22]} 56. Ke3 {[%emt 0:00:11]} Kf6 {[%emt 0:00:58]} 57. Kd4 {[%emt 0:00:20]} Kg5 {[%emt 0:00:22]} 58. Ke5 {[%emt 0:00:15]} Nc3 {[%emt 0:00:37]} 59. Ne6+ {[%emt 0:00:22]} Kxh6 {[%emt 0:00:21]} 60. Kxf5 {[%emt 0:00:15]} Kh5 {[%emt 0:00:38]} 61. Ng5 {[%emt 0:00:33]} h6 {[%emt 0:00:30]} 62. Nf7 {[%emt 0:00:05]} Nb5 {[%emt 0:00:17]} 63. Kf6 {[%emt 0:00:27]} Kg4 {[%emt 0:00:27]} 64. Nxh6+ {[%emt 0:00:06]} Kf4 {[%emt 0:00:03]} 65. Ke6 {[%emt 0:00:25]} Ke4 {[%emt 0:00:12]} 66. Nf5 {[%emt 0:00:05]} Kd3 {[%emt 0:00:43]} 67. Kd5 {[%emt 0:00:17]} Nc7+ {[%emt 0:00:13]} 68. Kc6 {[%emt 0:00:13]} Kc4 {[%emt 0:00:06]} 69. Kxc7 {[%emt 0:00:05]} Kxb4 {[%emt 0:00:02] Weighted Error Value: White=0.24 (precise) /Black=0.14 (very precise)} 1/2-1/2

[Event "1000IM Saint Louis 2022"]
[Site "Saint Louis"]
[Date "2022.07.23"]
[Round "9.2"]
[White "Altman, Joshua"]
[Black "Williams, Justus"]
[Result "0-1"]
[ECO "E61"]
[WhiteElo "2162"]
[BlackElo "2390"]
[Annotator "TA"]
[PlyCount "158"]
[EventDate "2022.07.20"]
[EventType "tourn"]
[EventCountry "USA"]
[SourceTitle "playchess.com"]
[Source "ChessBase"]
[SourceQuality "1"]
[TimeControl "5400+30"]

{[%evp 12,158,41,39,42,27,51,17,50,44,51,27,35,27,52,34,39,29,34,30,38,31,50,37,64,59,98,73,148,148,168,102,129,124,118,120,172,177,223,223,210,204,186,176,231,196,193,192,183,204,209,67,67,67,67,76,69,68,76,0,0,0,0,0,46,0,0,0,0,0,0,0,0,0,0,0,0,0,0,0,0,0,0,0,0,0,0,0,0,0,0,0,0,0,0,0,0,0,0,0,0,0,0,0,0,0,0,0,0,0,0,0,0,0,0,0,0,0,0,0,0,0,0,0,0,0,0,0,0,0,0,0,0,-29976,-29977,-29982,-29983,-29983,-29984,-29984,-29981,-29981,-29982,-29982,-29983,-29983,-29983,-29982,0]} 1. d4 {[%emt 0:00:03]} Nf6 {[%emt 0:00:19]} 2. c4 {[%emt 0:00:05]} g6 {[%emt 0:00:06]} 3. Nc3 {[%emt 0:00:04]} Bg7 {[%emt 0:00:11]} 4. Nf3 {[%emt 0:00:04]} O-O {[%emt 0:00:15]} 5. Bg5 {[%emt 0:00:02]} d6 {[%emt 0:01:34]} 6. e3 {[%emt 0:00:04]} Bf5 {[%emt 0:04:25]} 7. Bd3 {[%emt 0:00:57] 7.Bd3 is better than 7.Be2.} Qc8 {[%emt 0:01:07] [#] E61: King's Indian: Early deviations for White, including Smyslov System.} 8. Bxf6 $146 {[%emt 0:05:16]} ({Predecessor:} 8. Rc1 Nc6 9. a3 Rd8 10. O-O e5 11. d5 Bxd3 12. Qxd3 Ne7 13. e4 Kh8 14. Nd2 Neg8 15. f3 {1-0 (47) Briem,S (1569)-Karhula,A (1143) Oslo 2016}) 8... exf6 {[%emt 0:01:08]} 9. Nd5 {[%emt 0:00:26]} Nc6 {[%emt 0:01:10] Prevents Ne7+. The position is equal.} 10. Bxf5 {[%emt 0:04:10]} Qxf5 {[%emt 0:00:04]} 11. b4 {[%emt 0:02:50]} Qd7 $1 {[%emt 0:03:02]} 12. O-O {[%emt 0:03:01]} Rfe8 {[%emt 0:01:21]} 13. Qb3 {[%emt 0:05:16]} Nd8 {[%emt 0:00:55]} 14. a4 {[%emt 0:01:52]} Ne6 {[%emt 0:00:53]} 15. Rac1 {[%emt 0:02:44]} f5 {[%emt 0:02:21]} 16. Rfd1 {[%emt 0:01:33]} Qc8 {[%emt 0:03:32]} 17. c5 {[%emt 0:09:22]} Qd7 {[%emt 0:12:39]} 18. Nc3 {[%emt 0:06:30]} dxc5 {[%emt 0:02:38] [#]} 19. d5 {[%emt 0:06:08][%mdl 64] Deflection} (19. dxc5 $6 Qc8 $11) (19. bxc5 c6 $14) 19... Nd8 {[%emt 0:11:07]} (19... Bxc3 $2 20. dxe6 (20. Rxc3 Ng7 $16) (20. Qxc3 cxb4 21. Qxb4 Nd8 $11) 20... Qxe6 21. Qxc3 $18) (19... Nf8 $142) 20. bxc5 $16 {[%emt 0:00:00]} c6 {[%emt 0:01:52]} 21. Nd4 {[%emt 0:14:24]} (21. dxc6 $18 Qxc6 22. Nd4 Bxd4 23. exd4) 21... Rc8 {[%emt 0:05:47]} 22. a5 $36 {[%emt 0:07:56][%mdl 2048] Black is under strong pressure.} f4 {[%emt 0:08:06]} 23. exf4 {[%emt 0:12:25]} Qg4 {[%emt 0:12:09]} (23... cxd5 $16 {keeps fighting.} 24. Nxd5 (24. Qxd5 Qxd5 25. Nxd5 Bxd4 $11) 24... Ne6 25. Nxe6 Qxe6) 24. g3 $18 {[%emt 0:03:00]} cxd5 {[%emt 0:06:07]} (24... g5 $142 25. d6 gxf4) 25. Nxd5 {[%emt 0:00:31] Pair of Knights!} Nc6 {[%emt 0:00:38]} 26. Nxc6 {[%emt 0:02:38]} bxc6 {[%emt 0:00:53]} 27. Ne3 {[%emt 0:00:19]} Qh3 {[%emt 0:02:29]} (27... Rb8 $142) 28. Qb7 {[%emt 0:02:24]} Bf8 {[%emt 0:02:47]} 29. Qxa7 {[%emt 0:03:22]} Ra8 {[%emt 0:01:43]} 30. Qb6 {[%emt 0:01:40]} Rab8 {[%emt 0:01:21]} 31. Qxc6 {[%emt 0:00:34]} ({White should try} 31. Qc7 $18) 31... Rxe3 $1 $14 {[%emt 0:00:41]} 32. fxe3 {[%emt 0:00:05]} Rb2 {[%emt 0:00:05]} 33. Qh1 {[%emt 0:00:18]} Qh5 {[%emt 0:00:15]} 34. Re1 {[%emt 0:06:00] Inhibits Qe2. Strongly threatening c6.} ({Of course not} 34. Rb1 Qe2 35. Rxb2 Qxd1+ 36. Kg2 Qd5+ 37. Kg1 Qd1+ 38. Kg2 Qd5+ 39. Kg1 Qd1+ $11) 34... Bxc5 {[%emt 0:00:33]} 35. Rxc5 {[%emt 0:01:20]} Qxc5 {[%emt 0:00:05][%mdl 4096] Endgame KQR-KQR} 36. Qa8+ {[%emt 0:00:14]} Kg7 {[%emt 0:00:02]} 37. Qe4 {[%emt 0:00:07] aiming for Qd4+.} Rb4 {[%emt 0:06:18] Inhibits Qd4+.} (37... Qxa5 $11 {is more appropriate.} 38. Rd1 Qa2) 38. Qe5+ {[%emt 0:00:39]} (38. Qd3 $14) 38... Qxe5 $11 {[%emt 0:00:34]} 39. fxe5 {[%emt 0:00:05] Hoping for Ra1. KR-KR} Ra4 {[%emt 0:00:09] Inhibits Ra1.} 40. Kf2 {[%emt 0:00:31]} Rxa5 {[%emt 0:00:08]} 41. e6 {[%emt 0:00:17]} fxe6 {[%emt 0:00:12]} 42. Kf3 {[%emt 0:00:15]} Kf6 {[%emt 0:00:22]} 43. Rb1 {[%emt 0:00:15]} Rf5+ {[%emt 0:00:58]} 44. Kg2 {[%emt 0:00:07]} g5 {[%emt 0:01:25]} 45. g4 {[%emt 0:00:30]} Re5 {[%emt 0:00:29]} 46. Kf3 {[%emt 0:00:16]} Kg6 {[%emt 0:00:16]} 47. Rb7 {[%emt 0:00:28]} h5 {[%emt 0:00:33]} 48. gxh5+ {[%emt 0:00:19]} Kxh5 {[%emt 0:00:02]} 49. Rh7+ {[%emt 0:00:11]} Kg6 {[%emt 0:00:02]} 50. Rh8 {[%emt 0:00:10]} Rf5+ {[%emt 0:03:54]} 51. Kg3 {[%emt 0:00:05]} Kg7 {[%emt 0:01:10]} 52. Ra8 {[%emt 0:00:10]} Rf1 {[%emt 0:00:36]} 53. Ra5 {[%emt 0:00:34]} Kf6 {[%emt 0:00:24]} 54. Rb5 $1 {[%emt 0:00:22]} Re1 {[%emt 0:01:44]} 55. Kf2 {[%emt 0:00:06]} Rd1 {[%emt 0:00:07]} 56. Rb2 {[%emt 0:00:43]} Kf5 {[%emt 0:00:27]} 57. Rb5+ {[%emt 0:00:54]} Kg4 {[%emt 0:01:10]} 58. Rb2 {[%emt 0:02:44]} Kh3 {[%emt 0:00:45]} 59. Rb5 {[%emt 0:01:29]} Rd5 {[%emt 0:01:29]} 60. Rb8 {[%emt 0:01:01]} Rd2+ {[%emt 0:01:07]} 61. Kf3 {[%emt 0:00:20][%cal Rb8h8]} g4+ {[%emt 0:00:09]} 62. Kf4 {[%emt 0:00:09] Rh8+ is the strong threat.} Rf2+ {[%emt 0:00:16]} 63. Ke5 {[%emt 0:00:38]} Kxh2 {[%emt 0:00:07]} 64. Rh8+ {[%emt 0:00:05]} Kg2 {[%emt 0:01:20]} 65. Kxe6 {[%emt 0:00:16]} Kf3 {[%emt 0:01:10] ( -> ...g3)} (65... Re2 $5 66. Kf5 Kg3 $11) 66. Kf5 {[%emt 0:00:44]} g3 {[%emt 0:01:03]} (66... Rf1 $5 67. e4 Kg3+ 68. Ke5 Rd1 $11) 67. e4 {[%emt 0:00:31]} Rh2 {[%emt 0:00:12]} 68. Rg8 {[%emt 0:00:47]} Rh5+ {[%emt 0:00:47]} 69. Kf6 {[%emt 0:00:29]} Rh4 {[%emt 0:00:22]} 70. e5 {[%emt 0:00:21]} Rf4+ {[%emt 0:00:16]} 71. Ke7 {[%emt 0:00:09]} Rg4 {[%emt 0:00:09]} 72. Rf8+ $2 {[%emt 0:00:13][%mdl 8192] [#]} (72. Rc8 $11) 72... Ke4 {[%emt 0:00:22] Black mates.} 73. Ra8 {[%emt 0:01:38]} g2 {[%emt 0:00:19]} 74. Ra4+ {[%emt 0:00:14]} Kf5 {[%emt 0:00:02]} 75. Ra1 {[%emt 0:00:13]} Kxe5 {[%emt 0:00:08]} 76. Rg1 {[%emt 0:00:06]} Kf4 {[%emt 0:00:05]} 77. Kf6 {[%emt 0:00:02]} Kf3 {[%emt 0:00:06]} 78. Kf5 {[%emt 0:00:03]} Rg8 {[%emt 0:00:04]} 79. Ke5 {[%emt 0:00:20]} Rg4 $2 {[%emt 0:00:52][%mdl 32768] Quite a comeback for Black.  Weighted Error Value: White=0.10 (very precise) /Black=0.09 (flawless) . Loss on time!?} (79... Kf2 {mates} 80. Rc1 g1=Q 81. Rxg1 Rxg1 82. Kd4 Kf3 83. Kc5 Rg5+ 84. Kc6 Ke4 85. Kd6 Re5 86. Kc6 Rd5 87. Kc7 Kd4 88. Kc6 Kc4 89. Kb6 Rc5 90. Ka6 Rb5 91. Ka7 Kc5 92. Ka6 Kc6 93. Ka7 Ra5+ 94. Kb8 Ra2 95. Kc8 Ra8#) 0-1

[Event "1000IM Saint Louis 2022"]
[Site "Saint Louis"]
[Date "2022.07.23"]
[Round "9.3"]
[White "Nyzhnyk, Illya"]
[Black "Proleiko, Julian"]
[Result "1-0"]
[ECO "A13"]
[WhiteElo "2686"]
[BlackElo "2238"]
[Annotator "TA"]
[PlyCount "63"]
[EventDate "2022.07.20"]
[EventType "tourn"]
[EventCountry "USA"]
[SourceTitle "playchess.com"]
[Source "ChessBase"]
[SourceQuality "1"]
[TimeControl "5400+30"]

{[%evp 9,63,-14,28,10,16,0,23,26,10,17,14,27,58,21,69,16,45,41,47,49,58,52,49,41,43,40,58,58,69,65,54,25,27,21,25,22,27,29,20,-31,-21,-20,243,221,344,337,415,414,406,395,381,379,415,404,411,412]} 1. Nf3 {[%emt 0:00:18]} Nf6 {[%emt 0:00:07]} 2. c4 {[%emt 0:00:04]} e6 {[%emt 0:00:11]} 3. g3 {[%emt 0:00:16]} a6 {[%emt 0:00:04]} 4. Bg2 {[%emt 0:00:41]} b5 {[%emt 0:00:05]} 5. O-O {[%emt 0:04:27]} Bb7 {[%emt 0:00:09]} 6. d3 {[%emt 0:00:08] A13: English Opening: 1...e6.} Be7 {[%emt 0:00:25]} 7. Qb3 $5 {[%emt 0:01:55][%mdl 4] [#] Exploring less charted territory.} b4 $146 {[%emt 0:00:43]} ({Predecessor:} 7... O-O 8. Nc3 c6 9. e4 d5 10. e5 Nfd7 11. cxd5 cxd5 12. d4 Nc6 13. h4 Qb6 {1-0 (26) Demidov,M (2551)-Hjartarson,J (2499) Chess.com INT 2021}) 8. e4 {[%emt 0:00:23] White has an edge.} O-O {[%emt 0:01:04]} 9. e5 {[%emt 0:00:22]} Ne8 {[%emt 0:00:27]} 10. d4 {[%emt 0:00:41]} a5 {[%emt 0:00:16]} 11. Qd3 {[%emt 0:03:30][%cal Of3g5]} d6 {[%emt 0:16:11] [#]} (11... d5 $11) 12. exd6 {[%emt 0:00:47] White is more active.} ({Better is} 12. Ng5 $1 $14 Bxg5 13. Bxg5 (13. Bxb7 Bxc1 14. Rxc1 Ra7 $14) 13... Qxg5 14. f4 (14. Bxb7 Ra7 $16)) 12... cxd6 {[%emt 0:00:32] [#]} 13. Ng5 $1 {[%emt 0:01:05]} Bxg5 {[%emt 0:00:05]} 14. Bxb7 {[%emt 0:00:22]} Bxc1 {[%emt 0:00:22]} 15. Rxc1 {[%emt 0:00:02]} ({Of course not} 15. Bxa8 Bxb2 16. Nd2 Bxa1 17. Rxa1 Nf6 $17) 15... Ra7 {[%emt 0:00:06]} 16. Bg2 {[%emt 0:00:11]} Nf6 {[%emt 0:02:25]} 17. a3 {[%emt 0:01:55] Threatens to win with axb4.} Na6 {[%emt 0:01:10]} 18. Nd2 {[%emt 0:01:06][%cal Bb1d2,Bd2b3,Bb3a5,Ba5c6][%mdl 32]} Qb8 {[%emt 0:01:41]} 19. Nb3 {[%emt 0:02:25]} a4 {[%emt 0:03:50]} 20. Na5 {[%emt 0:00:38] Nc6 is the strong threat.} Qb6 {[%emt 0:00:48]} 21. Nc6 $36 {[%emt 0:00:05][%mdl 2048] White fights for an advantage.} Rc7 {[%emt 0:00:08]} 22. c5 {[%emt 0:13:03]} dxc5 {[%emt 0:00:04]} 23. dxc5 {[%emt 0:00:05]} Nxc5 {[%emt 0:00:06]} 24. Qe3 {[%emt 0:11:46] [#]} (24. Qd6 $11 Rxc6 25. Qxc6 Qxc6 26. Bxc6) 24... bxa3 $1 $15 {[%emt 0:00:47]} 25. bxa3 {[%emt 0:22:12] aiming for Rab1.} (25. Qxc5 Qxc5) 25... Ncd7 $2 {[%emt 0:02:12][%mdl 8192] [#] This move loses the game for Black.} (25... Nfd7 $11 26. Rab1 Nb3 27. Ne7+ Kh8 28. Qxb6 Rxc1+ 29. Rxc1 Nxb6) 26. Qf4 $1 $18 {[%emt 0:01:33]} e5 {[%emt 0:01:29] [#]} (26... Rxc6 {was worth a try.} 27. Rxc6 (27. Bxc6 Nc5 $16) 27... Qb2) 27. Qc4 $1 {[%emt 0:00:20] And now Ne7+ would win.} Rfc8 {[%emt 0:02:35]} 28. Ne7+ {[%emt 0:00:59] White is winning.} Kf8 {[%emt 0:00:03]} 29. Nxc8 {[%emt 0:00:07]} Rxc4 {[%emt 0:00:03]} 30. Nxb6 {[%emt 0:00:05]} Nxb6 {[%emt 0:00:04]} 31. Rxc4 {[%emt 0:01:46]} Nxc4 {[%emt 0:00:01]} 32. Bc6 {[%emt 0:00:06] Weighted Error Value: White=0.11 (very precise) /Black=0.38} 1-0